Cogmind - Beta 16 @@@ ROGUE MODE // 2025.12.31 @ 16:56:12 Player: Compilatron Result: Destroyed by D-53 Grenadier with Mini Grenade Launcher Performance ------------- Evolutions (0) 0 Regions Visited (2) 400 Robots Destroyed (15) 75 Value Destroyed (345) 345 Prototype IDs (1) 20 Alien Tech Used (0) 0 Bonus (0) 0 TOTAL SCORE: 840 Bonus ------- None Cogmind --------- Core Integrity 0/250 Matter 280/300 Energy 258/280 System Corruption 0% Temperature Cool (4) Movement Rolling (125) Ox3 Location -10/Mines Parts ------- > --- POWER (1) -------- Heavy Ion Engine > --- PROPULSION (2) --- Light Treads Wheel > --- UTILITY (2) ------ Cooling System Large Storage Unit > --- WEAPON (2) ------- Spread Laser Spread Laser > --- INVENTORY (15) --- Ion Engine Light Treads Light Treads Sensor Array Hardened Light Armor Plating Hardened Light Armor Plating Hardened Light Armor Plating Spread Laser Mini Grenade Launcher Mini Grenade Launcher Plasma Cutter Mining Claw Peak State ------------ > --- POWER ------------ Heavy Ion Engine > --- PROPULSION ------- Light Treads Compact Wheel > --- UTILITY ---------- Cooling System Large Storage Unit > --- WEAPON ----------- Spread Laser Spread Laser > --- INVENTORY -------- Ion Engine Light Treads Light Treads Wheel Hardened Light Armor Plating Hardened Light Armor Plating Hardened Light Armor Plating Light Assault Rifle Mini Grenade Launcher Mini Grenade Launcher Mini Grenade Launcher Plasma Cutter Mining Claw [Rating: 14] Favorites ----------- Power Heavy Ion Engine Engine Heavy Ion Engine Propulsion Light Treads Treads Light Treads Leg Aluminum Leg Wheel Compact Wheel Utility Cooling System Device Cooling System Storage Small Storage Unit Weapon Spread Laser Energy Gun Spread Laser Ballistic Gun Assault Rifle Build | -11 -10 -10 ------- Run | Yrd Mat Min Slots Evolved . | . . . Power . | . . . Propulsion . | . . . Utility . | . . . Weapon . | . . . Parts Attached 13 | . 11 2 Power 3 | . 3 . Engine 3 | . 3 . Core . | . . . Reactor . | . . . Propulsion 3 | . 2 1 Treads 1 | . 1 . Leg . | . . . Wheel 2 | . 1 1 Hover . | . . . Flight . | . . . Utility 3 | . 3 . Device 1 | . 1 . Storage 2 | . 2 . Processor . | . . . Hackware . | . . . Protection . | . . . Artifact . | . . . Weapon 4 | . 3 1 Energy Gun 3 | . 2 1 Energy Cannon . | . . . Ballistic Gun 1 | . 1 . Ballistic Cannon . | . . . Launcher . | . . . Special Weapon . | . . . Impact Weapon . | . . . Slashing Weapon . | . . . Piercing Weapon . | . . . Special Melee Weapon . | . . . Unidentified Prototypes 1 | . 1 . Parts Lost 2 | . . 2 Power . | . . . Propulsion 1 | . . 1 Utility . | . . . Weapon 1 | . . 1 Highest Loss Streak 2 | . . 2 To Critical Strikes . | . . . Average Backups 9 | 6 8 14 Power 1 | 1 1 1 Propulsion 3 | 4 3 3 Utility 1 | . . 4 Weapon 2 | 1 2 5 Tool/Special . | . . . Unused Backups 23 | . 14 9 Power 3 | . 3 . Propulsion 5 | . 4 1 Utility 5 | . 2 3 Weapon 9 | . 5 4 Tool/Special 1 | . . 1 Average Slot Usage (%) 94 | . 93 98 Engine 14 | . 14 14 Treads 11 | . 10 14 Leg 4 | . 6 . Wheel 11 | . 10 13 Device 9 | . 8 14 Storage 14 | . 14 14 Energy Gun 17 | . 14 27 Ballistic Gun 10 | . 13 . Peak Build Rating 14 | 6 14 14 Average Rating 10 | 6 10 13 On Entrance 8 | 6 6 14 Avg Prop Armor Cover (%) 12 | . 12 13 Naked Turns . | . . . Heaviest Build 36 | 11 36 36 Greatest Support 20 | 20 20 16 Greatest Overweight (x) 2 | . 2 2 Average Overweight (x) 1 | . . 2 Largest Inventory Capacity 15 | 8 15 15 Average Capacity 10 | 8 9 15 Most Carried 15 | 6 15 14 Average Carried 9 | 6 8 13 Final Capacity 15 | 8 15 15 Final Carried 14 | 6 14 12 Class Distribution -------------------- 100% | Mutant Dominant Class ---------------- Mutant | -10/Materials Mutant | -10/Mines Resources | -11 -10 -10 ----------- Run | Yrd Mat Min Matter Collected 504 | 200 276 28 Remotely . | . . . Salvage Created 379 | . 346 33 Parts 24 | . 19 5 Haulers Intercepted . | . . . Recyclers Shooed . | . . . Parts Field Recycled . | . . . Retrieved Matter . | . . . Parts Self-Destructed . | . . . Prevented . | . . . Parts Restored . | . . . Kills | -11 -10 -10 ------- Run | Yrd Mat Min Combat Hostiles Destroyed 13 | . 10 3 Guns 13 | . 10 3 Classes Destroyed 4 | . 3 1 Builder 1 | . . 1 Watcher 1 | . 1 . Swarmer 6 | . 3 3 Grunt 7 | . 7 . Best Kill Streak 3 | . 3 3 Combat Bots Only 3 | . 3 3 Max Kills in Single Turn 1 | . 1 1 Gunslinging . | . . . Exploded . | . . . Melee . | . . . Uniques/NPCs Destroyed . | . . . Combat | -11 -10 -10 -------- Run | Yrd Mat Min Hostile Shots Fired 79 | . 57 22 Missed 23 | . 15 8 Hits 56 | . 42 14 Projectile 56 | . 42 14 AOE 9 | . . 9 Damage Taken 936 | . 492 444 Core 262 | . 130 132 Absorbed by Shields . | . . . Core Remaining (%) 100 | 100 . . Volleys Fired 42 | . 34 8 Largest 2 | . 2 2 Hottest 130 | . 130 130 Shots Fired 82 | . 68 14 Gun 82 | . 68 14 Cannon . | . . . Launcher . | . . . Special . | . . . Kinetic 58 | . 58 . Thermal 24 | . 10 14 Explosive . | . . . Electromagnetic . | . . . Robot Hit Streak 15 | . 15 4 Robot Miss Streak 7 | . 7 5 Penetration Max . | . . . Secondary Targets 1 | . . 1 Max Gunslinging Chain 1 | . . 1 Shots Hit Robots 57 | . 43 14 Core Hits 40 | . 27 13 Critical Kills . | . . . Critical Parts Destroyed . | . . . Critical Strikes . | . . . Melee Attacks . | . . . Impact . | . . . Slashing . | . . . Piercing . | . . . Sneak Attacks . | . . . Combat Hostiles . | . . . Follow-up Attacks . | . . . Damage Inflicted 762 | . 613 149 Guns 762 | . 613 149 Cannons . | . . . Explosions . | . . . Melee . | . . . Ramming . | . . . Kinetic 491 | . 491 . Thermal 271 | . 122 149 Explosive . | . . . Electromagnetic . | . . . Impact . | . . . Slashing . | . . . Piercing . | . . . Highest Corruption . | . . . Average Corruption . | . . . Corruption Purged . | . . . Corruption Blocked . | . . . Overload Shots . | . . . Overflow Damage . | . . . Projectiles . | . . . Explosions . | . . . Melee . | . . . Knockbacks . | . . . Impact . | . . . Kinetic . | . . . Secondary . | . . . Self-Inflicted Damage . | . . . Shots . | . . . Rammed . | . . . Targets Rammed . | . . . Kicked . | . . . Crushed . | . . . Highest Temperature 60 | . 60 24 Average Temperature 15 | . 18 10 Received Heat Transfer 207 | . 207 . Siege Activations . | . . . Martial Activations . | . . . Shielding Activations . | . . . Robots Disrupted . | . . . Combat Hostiles . | . . . Robots Corrupted . | . . . Combat Hostiles . | . . . Parts Fried . | . . . Impact Corruptions . | . . . Robots Melted . | . . . Combat Hostiles . | . . . Parts Melted . | . . . Heat Transferred 340 | . 150 190 Parts Sabotaged . | . . . Parts Stolen . | . . . Parts Stripped . | . . . Power Chain Reactions . | . . . Alert | -11 -10 -10 ------- Run | Yrd Mat Min Maximum Alert Level . | . . . Low Security (%) 100 | 100 100 100 Level 1 . | . . . Level 2 . | . . . Level 3 . | . . . Level 4 . | . . . Level 5 . | . . . High Security . | . . . Max Security . | . . . Peak Influence 118 | . 118 70 Initial . | . . . Average 43 | . 53 17 Influence Increases 351 | . 276 75 Destroy 0b10 Robot/C 260 | . 200 60 Destroy 0b10 Robot/NC 10 | . 5 5 Destroy Leader 52 | . 42 10 Successful Hack 13 | . 13 . Destroy Structure 1 | . 1 . Lose Combat Pursuer 15 | . 15 . Influence Decreases 351 | . 276 75 Time Decay 346 | . 276 70 Lost Part 5 | . . 5 Squads Dispatched 1 | . 1 . Investigation . | . . . Extermination . | . . . Reinforcement 1 | . 1 . Assault . | . . . Garrison . | . . . Intercept . | . . . Searches Triggered . | . . . Construction Impeded . | . . . Haulers Reinforced . | . . . Active Scanning Responses . | . . . Cargo Convoy Interrupts . | . . . Stealth | -11 -10 -10 --------- Run | Yrd Mat Min Distress Signals 1 | . 1 . Communications Jammed . | . . . Distress Signals . | . . . Times Spotted 27 | . 17 10 Peak Tracking Total 6 | . 6 6 Tactical Retreats 1 | . 1 . Traps | -11 -10 -10 ------- Run | Yrd Mat Min Traps Triggered 1 | . 1 . Indirectly . | . . . Trap Hack Attempts . | . . . Triggered . | . . . Disarmed . | . . . Reprogrammed . | . . . Reused . | . . . Traps Extracted . | . . . Installed . | . . . Triggered . | . . . Machines | -11 -10 -10 ---------- Run | Yrd Mat Min Machines Disabled . | . . . Max in Single Turn . | . . . Machines Repaired . | . . . Machines Dismantled . | . . . Machines Sabotaged . | . . . Overloaded Fab Kills . | . . . Hacking | -11 -10 -10 --------- Run | Yrd Mat Min Machines Accessed 6 | . 5 1 Terminals 4 | . 3 1 Fabricators . | . . . Repair Stations 1 | . 1 . Recycling Units 1 | . 1 . Scanalyzers . | . . . Garrison Access . | . . . Total Hacks 24 | . 18 6 Successful 11 | . 10 1 Failed 13 | . 8 5 Catastrophic 1 | . 1 . Database Lockouts . | . . . Manual 17 | . 12 5 Terminals 20 | . 14 6 Fabricators . | . . . Repair Stations 1 | . 1 . Recycling Units 3 | . 3 . Scanalyzers . | . . . Garrison Access . | . . . Terminal Hacks 3 | . 2 1 Zone Layout 3 | . 2 1 Fabricator Hacks . | . . . Repair Station Hacks . | . . . Recycling Unit Hacks 1 | . 1 . Report Inventory 1 | . 1 . Scanalyzer . | . . . Garrison Access Hacks . | . . . Unauthorized Hacks 7 | . 7 . Terminals 5 | . 5 . Track 2 | . 2 . Botnet 2 | . 2 . Operators 1 | . 1 . Fabricators . | . . . Repair Stations . | . . . Recycling Units 2 | . 2 . Reject 1 | . 1 . Mask 1 | . 1 . Scanalyzers . | . . . Garrison Access . | . . . Data Cores Recovered . | . . . Used . | . . . Hacking Detections 5 | . 4 1 Full Trace Events . | . . . Feedback Events . | . . . Feedback Blocked . | . . . Robot Schematics Acquired . | . . . Robots Built . | . . . Authchips . | . . . Time . | . . . Total Robot Build Rating . | . . . Part Schematics Acquired . | . . . Parts Built . | . . . Authchips . | . . . Time . | . . . Total Part Build Rating . | . . . Part Studies Acquired . | . . . Parts Repaired . | . . . Time . | . . . Parts Recycled . | . . . Recycled Matter . | . . . Retrieved Matter . | . . . Retrieved Components . | . . . Parts Scanalyzed . | . . . Part Schematics Acquired . | . . . Parts Damaged . | . . . Bothacking | -11 -10 -10 ------------ Run | Yrd Mat Min Used RIF Installer . | . . . Robots Hacked . | . . . Non-combat . | . . . Combat . | . . . Robot Hacks Applied . | . . . Relay Couplers Released . | . . . Fabnet Peak Effective % . | . . . Robots Rewired . | . . . Allies Hacked . | . . . Hacks Repelled . | . . . Allies | -11 -10 -10 -------- Run | Yrd Mat Min Total Allies . | . . . Largest Group . | . . . Highest-Rated Group . | . . . Highest-Rated Ally . | . . . Total Orders . | . . . Ally Attacks . | . . . Total Damage . | . . . Kills . | . . . Allies Corrupted . | . . . Allies Melted . | . . . Intel | -11 -10 -10 ------- Run | Yrd Mat Min Active Infowar (turns) . | . . . Robot Analysis Total . | . . . Derelict Logs Recovered 1 | . . 1 Drone Launches . | . . . Drone Recoveries . | . . . Exploration | -11 -10 -10 ------------- Run | Yrd Mat Min Turns Passed 976 | 9 712 255 Spaces Moved 632 | 8 446 178 Core . | . . . Treads . | . . . Legs 99 | 8 91 . Wheels 533 | . 355 178 Hover . | . . . Flight . | . . . Fastest Speed 100 | 120 100 130 Average Speed 121 | 120 117 130 Slowest Speed 130 | 120 130 130 Overloaded Moves . | . . . Propulsion Burnouts . | . . . Robots Hopped . | . . . Potential Cave-ins . | . . . Cave-ins Triggered . | . . . Exploration Rate (%) 36 | 2 69 39 Regions Visited 2 Branch Regions 1 Pre-discovered Areas . | . . . Known Exits Taken . | . . . Unknown Exits Taken 2 | 1 1 . Scrap Searched 1 | . . 1 Spaces Dug . | . . . Terrain Destroyed . | . . . Melee . | . . . Projectile . | . . . AOE . | . . . Terrain Rammed . | . . . Walls Destroyed . | . . . Machines Disabled . | . . . Actions | -11 -10 -10 --------- Run | Yrd Mat Min Total 762 | 7 567 188 Wait 47 | . 47 . Move 630 | 7 445 178 Hop . | . . . Pick Up 15 | . 15 . Fast Attach 6 | . 6 . Attach 3 | . 1 2 Detach . | . . . Swap 6 | . 6 . Drop 13 | . 13 . Fire 42 | . 34 8 Melee . | . . . Ram . | . . . Kick . | . . . Crush . | . . . Escape Stasis . | . . . Rewire . | . . . Trap . | . . . Miscellaneous . | . . . Route ------- -11/Scrapyard -10/Materials (discovered 2 exits: [*Mat] / *Min) -10/Mines History --------- Turn | Location | Event 1 | -11/Scrapyard | Discovered new exit (range 3) 10 | -11/Scrapyard | Entered Materials 340 | -10/Materials | Build established: Mutant 395 | -10/Materials | Discovered new exit (range 12) 479 | -10/Materials | Core integrity fell below 50% 538 | -10/Materials | Discovered new exit (range 11) 722 | -10/Materials | Entered Mines 750 | -10/Mines | Learned Materials terminal intel 854 | -10/Mines | Assembled infested the area 974 | -10/Mines | Core integrity fell below 20% 977 | -10/Mines | Destroyed by D-53 Grenadier with Mini Grenade Launcher Last Messages --------------- 00868_ Found 47 Matter. 00888_ as-03054 destroyed. 00888_ as-53370 destroyed. 00890_ as-20673 destroyed. 00894_ as-20855 destroyed. 00904_ as-61447 destroyed. 00906_ The unstable cave ceiling collapses. 00962_ K-01 Serf collects debris. 00963_ U-05 Engineer lays Concrete. 00965_ Seismic Survey Station disabled. 00965_ K-01 Serf collects debris. 00965_ U-05 Engineer lays Concrete. 00966_ U-05 Engineer destroyed. 00966_ U-05 Engineer lays Concrete. 00967_ Com. Wheel destroyed. 00967_ Spread Laser destroyed. 00967_ U-05 Engineer lays Concrete. 00968_ U-05 Engineer builds a Wall. 00969_ K-01 Serf collects debris. 00973_ U-05 Engineer builds a Wall. Map ----- +----------------------------------------------------+ | ?#""" #### #?????? | | ?#""" ###### #######??## ##?????? | | ?#""" #????# #?????????#### ##????? | | ?# #????# #????????????### # # #???? | | ?###T####????# #??????## ?????## ! % #????? | | ???###?####### #?????## ???## ## #????? | | ???????# #????## ## ## #????? | | ???????# ##### #????# #????? | | ?????### #???# #????# ##????? | | ????## ##??# #????# ### ##?????? | | ???## #### #????## ##?### ###??????? | | ??## #?????##### ######??????#????????? | | ??# % #?????????###?????????????????????? | | ??# [=## #####?????????????????????????????????? | | ??# ## #?????????????????????????????????????? | | ??# ## #############?????????????????????????? | | ??# ## #?????????????????????????? | | ??## ############# #?????????????????????????? | | ???### ##??????????# #?????????????????????????? | | ?????## ##?????????# #?????????????????????????? | | ?????## #?######### ######????????????????????? | | ?????# #?# ##???????????????????? | | ?????# #?# """ ##??????????????????? | | ?????## ##?# """ #??????????????????? | | ??????#####??# """ ## # % ????????? | | ?????????????# @ |d u # ????????? | | ?????????????# """ "" !%* **% ????????? | | ?????????????# """ "" ##! ==%!= ????????? | | ?????????????# """ """ ##??? ?????????? | | ?????????????? ##?????? ????????????? | | ??????????????? ##????????????????????? | | ??????????????##############?????????????????????? | | ?????????????????????????????????????????????????? | | ?????????????????????????????????????????????????? | | ?????????????????????????????????????????????????? | | ?????????????????????????????????????????????????? | | ?????????????????????????????????????????????????? | | ?????????????????????????????????????????????????? | | ?????????????????????????????????????????????????? | | ?????????????????????????????????????????????????? | | ?????????????????????????????????????????????????? | | ?????????????????????????????????????????????????? | | ?????????????????????????????????????????????????? | | ?????????????????????????????????????????????????? | | ?????????????????????????????????????????????????? | | ?????????????????????????????????????????????????? | | ?????????????????????????????????????????????????? | | ?????????????????????????????????????????????????? | | ?????????????????????????????????????????????????? | | ?????????????????????????????????????????????????? | +----------------------------------------------------+ Best States ------------- Heat Dissipation 47 Energy Generation 14 Energy Capacity 280 Matter Stores 300 Matter Capacity 300 Sight Range 16 Terrain Scan Density 10 Evasion (%) 55 Recoil Reduction 1 Item Schematics ----------------- None Robot Schematics ------------------ None Fabricated ------------ Nothing Repaired ---------- Nothing Studied --------- None Alien Tech Used ----------------- None Achievements -------------- None Challenges ------------ None Game ------ Seed GyrokineticStorageTorch Manual? 0 Play Time 00:09:34 Cumulative 84.9 hours Start 2025.12.31 @ 16:47:46 End 2025.12.31 @ 16:56:12 Sessions 1 Manual Loads 0 Difficulty Rogue Special Mode None Game No. 136 Rogue 112 Adventurer 20 Explorer 4 Win Type - Total 1 Types 0/0/0/1/0/0/0/0/0/0 Lore% 55 Gallery% 45 Achievement% 36 Wizard Run 0 Options --------- Layout 1 ASCII 0 Keyboard 0 Movement Numpad Keybinds 0 Fullscreen 2 Font 24/Smallcaps Map View 50x35 Zoom Use 0% Tactical HUD 1 Map Filters NONE Filters NONE Steam 1 RUN: 10ff12f6-4bd2-4e45-be30-e95e7c8a7358